bitfinex/quotes_BTCUSD_20251114
["timestamp","ask_amount","ask_price","bid_price","bid_amount"]
[1763091653384,0.56676723,99182.0,99181.0,1e-08]
[1763091653607,0.24376723,99182.0,99181.0,1e-08]
[1763091653810,0.23865225,99182.0,99181.0,1e-08]
[1763091654508,0.22000949,99182.0,99181.0,1e-08]
[1763091654939,0.31849285,99182.0,99181.0,1e-08]
[1763091655591,0.30213285,99182.0,99181.0,1e-08]
[1763091655802,0.20364949,99182.0,99181.0,1e-08]
[1763091656666,0.52664949,99182.0,99181.0,1e-08]
[1763091657080,0.52564949,99182.0,99181.0,1e-08]
[1763091657311,0.54200949,99182.0,99181.0,1e-08]
[1763091657525,0.64049285,99182.0,99181.0,1e-08]
[1763091657741,0.62513285,99182.0,99181.0,1e-08]
[1763091657954,0.62413285,99182.0,99181.0,1e-08]
[1763091658221,0.64049285,99182.0,99181.0,1e-08]
[1763091658683,2.72403728,99182.0,99181.0,1e-08]
[1763091659128,2.72893383,99182.0,99181.0,1e-08]
[1763091659508,2.72993383,99182.0,99181.0,1e-08]
[1763091660037,2.72893383,99182.0,99181.0,1e-08]
[1763091660251,2.72993383,99182.0,99181.0,1e-08]
[1763091660832,2.72893383,99182.0,99181.0,1e-08]
[1763091661027,2.72993383,99182.0,99181.0,1e-08]
[1763091661254,2.63145047,99182.0,99181.0,1e-08]
[1763091664478,2.62655392,99182.0,99181.0,1e-08]
[1763091665983,0.20364949,99182.0,99181.0,1e-08]
[1763091666632,0.20264949,99182.0,99181.0,1e-08]
[1763091666890,0.20364949,99182.0,99181.0,1e-08]
[1763091667086,0.20264949,99182.0,99181.0,1e-08]
[1763091667505,0.20164949,99182.0,99181.0,1e-08]
[1763091668219,0.30013285,99182.0,99181.0,1e-08]
[1763091668607,0.63881285,99182.0,99181.0,1e-08]
[1763091669388,0.66030337,99182.0,99181.0,1e-08]
[1763091669585,0.66130341,99182.0,99181.0,1e-08]
[1763091669766,0.63981285,99182.0,99181.0,1e-08]
[1763091670188,0.6613115,99182.0,99181.0,1e-08]
[1763091670522,0.56382814,99182.0,99181.0,1e-08]
[1763091671093,2.60724688,99182.0,99181.0,1e-08]
[1763091671502,2.62591522,99182.0,99181.0,1e-08]
[1763091671893,2.63524817,99182.0,99181.0,1e-08]
[1763091672852,2.63424817,99182.0,99181.0,1e-08]
[1763091673024,2.73373153,99182.0,99181.0,1e-08]
[1763091673725,2.73573153,99182.0,99181.0,1e-08]
[1763091673881,2.63724817,99182.0,99181.0,1e-08]
[1763091674747,2.63524817,99182.0,99181.0,1e-08]
[1763091674948,2.63724817,99182.0,99181.0,1e-08]
[1763091675146,2.63524817,99182.0,99181.0,1e-08]
[1763091675590,2.63724817,99182.0,99181.0,1e-08]
[1763091675800,2.73573153,99182.0,99181.0,1e-08]
[1763091676568,2.74062808,99182.0,99181.0,1e-08]
[1763091679494,2.64214472,99182.0,99181.0,1e-08]
[1763091680903,2.64014472,99182.0,99181.0,1e-08]
[1763091681279,2.63914472,99182.0,99181.0,1e-08]
[1763091681491,2.63814472,99182.0,99181.0,1e-08]
[1763091681663,2.26439303,99182.0,99181.0,1e-08]
[1763091681868,2.24082814,99182.0,99181.0,1e-08]
[1763091682071,0.54614814,99182.0,99181.0,1e-08]
[1763091682270,0.22314814,99182.0,99181.0,1e-08]
[1763091682453,0.22514814,99182.0,99181.0,1e-08]
[1763091682682,0.20464949,99182.0,99181.0,1e-08]
[1763091683000,0.20164949,99182.0,99181.0,1e-08]
[1763091683346,0.20264949,99182.0,99181.0,1e-08]
[1763091683683,0.25073487,99182.0,99181.0,1e-08]
[1763091684054,0.20264949,99182.0,99181.0,1e-08]
[1763091684450,0.20164949,99182.0,99181.0,1e-08]
[1763091684898,0.20264949,99182.0,99181.0,1e-08]
[1763091685710,0.21832949,99182.0,99181.0,1e-08]
[1763091686696,0.2398437,99182.0,99181.0,1e-08]
[1763091686899,0.33832706,99182.0,99181.0,1e-08]
[1763091687782,0.31681285,99182.0,99181.0,1e-08]
[1763091688025,0.21832949,99182.0,99181.0,1e-08]
[1763091688205,0.20264949,99182.0,99181.0,1e-08]
[1763091688811,0.21832949,99182.0,99181.0,1e-08]
[1763091689424,0.30193608,99182.0,99181.0,1e-08]
[1763091689625,0.30683263,99182.0,99181.0,1e-08]
[1763091689846,2.72831599,99182.0,99181.0,1e-08]
[1763091690554,2.73865284,99182.0,99181.0,1e-08]
[1763091691558,2.73765284,99182.0,99181.0,1e-08]
[1763091691948,2.73865284,99182.0,99181.0,1e-08]
[1763091692983,2.73765284,99182.0,99181.0,1e-08]
[1763091693389,2.73865284,99182.0,99181.0,1e-08]
[1763091693712,2.74065284,99182.0,99181.0,1e-08]
[1763091694145,2.74065284,99182.0,99110.0,0.0104]
[1763091694146,0.27346994,99132.0,99110.0,0.0104]
[1763091694312,0.20179146,99113.0,99110.0,0.0104]
[1763091696239,0.0162,99111.0,99090.0,0.0204]
[1763091696452,2.0,99070.0,99026.0,0.01021]
[1763091696655,0.00999999,99050.0,99039.0,0.01021]
[1763091697044,0.00999999,99050.0,99049.0,0.01021]
[1763091697197,0.00999999,99060.0,99049.0,0.01021]
[1763091697581,0.323,99066.0,99065.0,0.01021]
[1763091697804,0.00013742,99066.0,99065.0,0.01021]
[1763091698012,0.00013742,99066.0,99051.0,0.1006426]
[1763091698242,0.00013742,99066.0,99052.0,0.05506981]
[1763091698440,0.00013742,99066.0,99010.0,0.2]
[1763091698441,0.20194064,99039.0,99013.0,0.20199211]
[1763091698657,0.00999999,99050.0,99038.0,0.01021]
[1763091698863,0.323,99044.0,99039.0,0.01021]
[1763091699084,0.20193816,99041.0,99039.0,0.01221]
[1763091699289,0.20193555,99043.0,99039.0,0.01021]
[1763091699502,0.20193767,99041.0,99039.0,0.01021]
[1763091700410,0.04038732,99040.0,99039.0,0.01021]
[1763091700608,0.20193767,99041.0,99039.0,0.01021]
[1763091700815,0.20193767,99041.0,99039.0,0.01388875]
[1763091701049,0.20193767,99041.0,99039.0,0.01021]
[1763091701285,0.52493767,99041.0,99040.0,0.0036528]
[1763091701519,0.61781732,99041.0,99040.0,0.0036528]
[1763091701729,0.63401732,99041.0,99040.0,0.0036528]
[1763091701935,0.64662732,99041.0,99040.0,0.0036528]
[1763091702779,0.63042732,99041.0,99040.0,0.0036528]
[1763091703191,0.64662732,99041.0,99040.0,0.0036528]
[1763091704064,0.63042732,99041.0,99040.0,0.0036528]
[1763091704274,0.00999999,99050.0,99041.0,0.01021]
[1763091704485,0.00999999,99040.0,99034.0,0.01021]
[1763091704687,0.33299999,99050.0,99038.0,0.20194168]
[1763091704918,0.33299999,99050.0,99043.0,0.01021]
[1763091705123,0.323,99046.0,99043.0,0.01021]
[1763091705553,0.323,99044.0,99043.0,0.01021]
[1763091705760,0.52493045,99044.0,99043.0,0.01021]
[1763091706100,0.323,99044.0,99043.0,0.01021]
[1763091706602,0.00999999,99050.0,99043.0,0.01021]
[1763091706939,0.001,99046.0,99041.0,0.01021]
[1763091707486,0.323,99044.0,99041.0,0.01021]
[1763091707915,0.01099999,99050.0,99041.0,0.01021]
[1763091708122,0.00999999,99060.0,99048.0,0.2019209]
[1763091708316,0.00999999,99060.0,99048.0,0.2019223]
[1763091708548,0.20202505,99066.0,99033.0,0.1006426]
[1763091708755,0.20192026,99049.0,99039.0,0.20193946]
[1763091709147,0.20192541,99047.0,99037.0,0.20194472]
[1763091709346,0.20193499,99042.0,99037.0,0.01021]
[1763091709754,0.00999999,99050.0,99037.0,0.01021]
[1763091709755,0.323,99057.0,99047.0,0.20192433]
[1763091709959,0.20190599,99056.0,99049.0,0.01021]
[1763091710155,0.20190599,99056.0,99048.0,0.01021]
[1763091710358,0.323,99057.0,99048.0,0.01021]
[1763091710563,0.323,99057.0,99056.0,0.01021]
[1763091710979,0.20190395,99057.0,99056.0,0.01021]
[1763091711305,0.323,99059.0,99056.0,0.01021]
[1763091711543,0.323,99057.0,99056.0,0.01021]
[1763091712662,0.20190395,99057.0,99056.0,0.01021]
[1763091713684,0.20290395,99057.0,99056.0,0.01021]
[1763091713857,0.20290395,99057.0,99034.0,0.30259317]
[1763091713858,0.00999999,99050.0,99039.0,0.01021]
[1763091714063,0.00999999,99050.0,99042.0,0.1006426]
[1763091714269,0.20192026,99049.0,99042.0,0.1006426]
[1763091714465,0.20192476,99047.0,99039.0,0.01021]
[1763091714665,0.20190424,99057.0,99048.0,0.01021]
[1763091714885,0.02009488,99060.0,99042.0,0.1006426]
[1763091714886,0.01009489,99060.0,99056.0,0.01021]
[1763091715029,0.20189987,99059.0,99051.0,0.20191545]
[1763091715235,0.20189987,99059.0,99043.0,0.01021]
[1763091715236,0.20188518,99067.0,99059.0,0.01021]
[1763091715439,0.32313742,99066.0,99059.0,0.01021]
[1763091715632,0.323,99060.0,99059.0,0.01021]
[1763091716738,0.00999999,99050.0,99046.0,0.01021]
[1763091716939,0.20192026,99049.0,99046.0,0.01021]
[1763091717617,0.20191095,99054.0,99042.0,0.01021]
[1763091717618,0.20193418,99043.0,99042.0,0.01021]
[1763091718309,0.20193418,99043.0,99029.0,0.20196048]
[1763091718310,0.2019438,99038.0,99032.0,0.1006426]
[1763091718482,0.20194066,99039.0,99036.0,0.01021]
[1763091718898,0.20194064,99040.0,99036.0,0.01021]
[1763091719102,0.20194273,99038.0,99036.0,0.01021]
[1763091719306,0.20194356,99038.0,99036.0,0.01021]
[1763091719501,0.20194064,99040.0,99036.0,0.01021]
[1763091719912,0.20194064,99040.0,99036.0,0.01121]
[1763091720159,0.20193418,99043.0,99036.0,0.01121]
[1763091720369,0.20192653,99046.0,99045.0,0.01021]
[1763091720541,0.20192362,99048.0,99045.0,0.01021]
[1763091720930,0.78305446,99060.0,99046.0,0.01021]
[1763091720931,0.46005446,99060.0,99046.0,0.01021]
[1763091721271,0.33223958,99059.0,99046.0,0.01021]
[1763091721488,0.323,99059.0,99049.0,0.2019201]
[1763091721698,0.00999999,99060.0,99051.0,0.20191606]
[1763091721855,0.20192428,99048.0,99032.0,0.20195492]
[1763091722176,0.20192428,99048.0,99031.0,0.01021]
[1763091722177,0.2019278,99046.0,99036.0,0.20194523]
[1763091722351,0.20193639,99042.0,99034.0,0.20195084]
[1763091722677,0.20193203,99044.0,99043.0,0.01021]
[1763091723374,0.20192872,99045.0,99043.0,0.01021]
[1763091724339,0.00929616,99044.0,99043.0,0.01021]
[1763091724730,0.20194838,99036.0,99034.0,0.01021]
[1763091724946,0.2019369,99041.0,99034.0,0.1108526]
[1763091725149,0.20193249,99043.0,99034.0,0.1108526]
[1763091725150,0.20194661,99037.0,99034.0,0.1108526]
[1763091725353,0.00929593,99036.0,99034.0,0.1108526]
[1763091725553,0.20194485,99037.0,99034.0,0.1108526]
[1763091725748,0.00930522,99036.0,99034.0,0.1108526]
[1763091726085,0.20208212,99037.0,99034.0,0.1108526]
[1763091726344,0.00930522,99036.0,99034.0,0.1118526]
[1763091726543,0.00930522,99035.0,99034.0,0.1118526]
[1763091726746,0.00930522,99035.0,99034.0,0.30359344]
[1763091727022,0.00930522,99035.0,99034.0,0.1016426]
[1763091727378,0.00930522,99035.0,99034.0,0.1006426]
[1763091727577,0.00930522,99035.0,99034.0,0.001]
[1763091727981,0.00930522,99035.0,99034.0,0.20195084]
[1763091728178,0.00930522,99035.0,99034.0,0.20295084]
[1763091729221,0.02796016,99035.0,99034.0,0.20395084]
[1763091729385,0.00930522,99035.0,99034.0,0.20395084]
[1763091730278,0.00013734,99037.0,99036.0,0.20194676]
[1763091730483,0.00946482,99037.0,99036.0,0.20194676]
[1763091731453,0.02812048,99037.0,99036.0,0.20294676]
[1763091732131,0.00946482,99037.0,99036.0,0.20294676]
[1763091732339,0.0281211,99037.0,99036.0,0.20294676]
[1763091732544,0.00946482,99037.0,99036.0,0.20294676]
[1763091732746,0.00946482,99037.0,99036.0,0.20670334]
[1763091737267,0.02815138,99037.0,99036.0,0.20670334]
[1763091739723,0.02817108,99037.0,99036.0,0.20670334]
[1763091741735,0.02817108,99037.0,99036.0,0.00475658]
[1763091741953,0.05118221,99037.0,99036.0,0.00475658]
[1763091742776,0.02817108,99037.0,99036.0,0.00475658]
[1763091743343,0.00013734,99037.0,99036.0,0.00475658]
[1763091743542,0.02817171,99037.0,99036.0,0.01496658]
[1763091743750,0.02817199,99037.0,99036.0,0.01496658]
[1763091744150,0.02817199,99037.0,99036.0,0.00475658]
[1763091744151,0.23011671,99037.0,99036.0,0.00475658]
[1763091744360,0.25312698,99037.0,99036.0,0.00475658]
[1763091744759,0.05118226,99037.0,99036.0,0.00475658]
[1763091745971,0.05118226,99037.0,99036.0,0.00375658]
[1763091745972,0.05218226,99037.0,99036.0,0.00375658]
[1763091746290,0.02917199,99037.0,99036.0,0.00375658]
[1763091746501,0.05215466,99038.0,99036.0,0.00375658]
[1763091746712,0.05215466,99038.0,99036.0,0.00045845]
[1763091747115,0.07367983,99038.0,99036.0,0.00045845]
[1763091747323,0.05215466,99038.0,99036.0,0.00045845]
[1763091747446,0.05315466,99038.0,99036.0,0.00045845]
[1763091748603,0.35134,99037.0,99036.0,0.00045845]
[1763091748804,0.37285755,99037.0,99036.0,0.00045845]
[1763091750413,0.37385755,99037.0,99036.0,0.00045845]
[1763091751263,0.02934,99037.0,99036.0,0.00045845]
[1763091751876,0.2382955,99039.0,99036.0,0.00045845]
[1763091752465,0.20194368,99038.0,99037.0,0.00945]
[1763091754277,0.001,99038.0,99037.0,0.00945]
[1763091756233,0.20192903,99045.0,99037.0,0.00945]
[1763091756487,0.20193709,99041.0,99038.0,0.02424]
[1763091756893,0.20192897,99045.0,99038.0,0.02424]
[1763091757209,0.20193299,99043.0,99038.0,0.02424]
[1763091757418,0.001,99045.0,99038.0,0.02794469]
[1763091757629,0.001,99045.0,99038.0,0.02424]
[1763091757848,0.323,99049.0,99038.0,0.02424]
[1763091758056,0.02688067,99078.0,99048.0,0.01544]
[1763091758238,0.01009285,99080.0,99077.0,0.02514]
[1763091758406,0.21195071,99080.0,99079.0,0.00945]
[1763091758614,0.01009285,99080.0,99079.0,0.00945]
[1763091758818,0.02009182,99090.0,99079.0,0.00945]
[1763091758819,0.20185157,99083.0,99079.0,0.00945]
[1763091759001,0.01009183,99090.0,99079.0,0.00945]
[1763091759356,0.20183875,99089.0,99081.0,0.2018547]
[1763091759643,0.0001378,99090.0,99089.0,0.01544]
[1763091759871,0.0001378,99090.0,99079.0,0.00945]
[1763091759990,0.20185448,99082.0,99079.0,0.00945]
[1763091760211,0.20188049,99069.0,99066.0,0.0097]
[1763091760586,0.24225663,99069.0,99066.0,0.0097]
[1763091760703,0.20189741,99061.0,99054.0,0.02424]
[1763091760908,0.00999999,99070.0,99050.0,0.02]
[1763091761224,0.00999999,99070.0,99047.0,0.00957]
[1763091761225,0.20190305,99058.0,99047.0,0.03381]
[1763091761409,0.2019223,99048.0,99047.0,0.00957]
[1763091762570,0.20194268,99038.0,99037.0,0.02424]
[1763091762731,0.20194268,99038.0,99037.0,0.02469845]
[1763091763176,0.20194268,99038.0,99037.0,0.00045845]
[1763091763535,0.20194268,99038.0,99037.0,0.00418909]
[1763091765002,0.20194268,99038.0,99037.0,0.00518909]
[1763091765289,0.20194268,99038.0,99037.0,0.00418909]
[1763091765423,0.21853268,99038.0,99037.0,0.00418909]
[1763091765627,0.20194268,99038.0,99037.0,0.00518909]
[1763091766564,0.20194268,99038.0,99037.0,0.00418909]
[1763091766777,0.60531157,99038.0,99037.0,0.00418909]
[1763091767964,0.52694268,99038.0,99037.0,0.00418909]
[1763091769618,0.52494268,99038.0,99037.0,0.00418909]
[1763091774163,0.54153268,99038.0,99037.0,0.00418909]
[1763091774365,0.52494268,99038.0,99037.0,0.00418909]
[1763091785892,0.20192433,99047.0,99046.0,0.02532]
[1763091786100,0.52492433,99047.0,99046.0,0.02532]
[1763091786520,0.20192433,99047.0,99046.0,0.02532]
[1763091787380,0.20192433,99047.0,99046.0,0.04982]
[1763091788878,0.20192433,99047.0,99046.0,0.02532]
[1763091789834,0.20194268,99038.0,99037.0,0.00045845]
[1763091790033,0.20194268,99038.0,99037.0,0.02495845]
[1763091791079,0.20194268,99038.0,99037.0,0.02595845]
[1763091796992,0.56470264,99050.0,99046.0,0.01523]
[1763091796993,0.52492505,99047.0,99046.0,0.01523]
[1763091797196,0.2019391,99040.0,99037.0,0.02595845]
[1763091797407,0.20194257,99039.0,99037.0,0.02595845]
[1763091798010,0.20194257,99039.0,99038.0,0.00370469]
[1763091799565,0.20193622,99042.0,99039.0,0.0245]
[1763091799794,0.20191792,99051.0,99048.0,0.02493]
[1763091800030,0.20191792,99051.0,99049.0,0.03973]
[1763091800268,0.20191812,99051.0,99049.0,0.03973]
[1763091800499,0.20191812,99051.0,99050.0,0.0245]
[1763091800730,0.2019159,99052.0,99050.0,0.0245]
[1763091800923,0.20191031,99054.0,99050.0,0.0245]
[1763091801175,0.20191387,99053.0,99050.0,0.0245]
[1763091801329,0.20291618,99051.0,99050.0,0.0245]
[1763091802433,0.20191614,99052.0,99050.0,0.0245]
[1763091803014,0.20191614,99052.0,99050.0,0.0255]
[1763091803355,0.20191614,99052.0,99050.0,0.0245]
[1763091803677,0.20191614,99052.0,99050.0,0.0255]
[1763091804261,0.20190217,99058.0,99050.0,0.0255]
[1763091804466,0.323,99058.0,99050.0,0.0255]
[1763091804866,0.52490395,99058.0,99050.0,0.0255]
[1763091805063,0.52490395,99058.0,99057.0,0.00321184]
[1763091805496,0.52490191,99058.0,99057.0,0.00321184]
[1763091812597,0.52490191,99058.0,99057.0,0.02634184]
[1763091817043,0.52490191,99058.0,99057.0,0.00321184]
[1763091821134,0.52490191,99058.0,99057.0,0.02634184]
[1763091822291,0.52490191,99058.0,99057.0,0.00321184]
[1763091827339,0.323,99059.0,99058.0,0.02313]
[1763091827582,0.2119934,99060.0,99058.0,0.02313]
[1763091829373,0.20189294,99063.0,99058.0,0.02313]
[1763091829997,0.20189836,99060.0,99058.0,0.02313]
[1763091830649,0.20189883,99060.0,99058.0,0.02313]
[1763091830858,0.20189987,99059.0,99058.0,0.02313]
[1763091832366,0.20191414,99052.0,99051.0,0.00957]
[1763091833958,0.20191414,99052.0,99051.0,0.00057]
[1763091834383,0.20191414,99052.0,99051.0,0.00393746]
[1763091836588,0.22513721,99052.0,99051.0,0.00393746]
[1763091838177,0.20191414,99052.0,99051.0,0.00393746]
[1763091841409,0.21702414,99052.0,99051.0,0.00393746]
[1763091841614,0.20191414,99052.0,99051.0,0.00393746]
[1763091842019,0.21702414,99052.0,99051.0,0.00393746]
[1763091842223,2.63296207,99052.0,99051.0,1e-08]
[1763091842420,2.73144543,99052.0,99051.0,1e-08]
[1763091842765,2.74102543,99052.0,99051.0,1e-08]
[1763091843320,2.767877,99052.0,99051.0,1e-08]
[1763091843942,2.74202543,99052.0,99051.0,1e-08]
[1763091844151,2.74302543,99052.0,99051.0,1e-08]
[1763091844348,2.55283793,99052.0,99051.0,1e-08]
[1763091844553,2.54111129,99052.0,99051.0,1e-08]
[1763091844755,2.74302543,99052.0,99051.0,1e-08]
[1763091845532,2.74298709,99052.0,99051.0,1e-08]
[1763091847086,2.59473142,99038.0,99037.0,1e-08]
[1763091848256,2.60443142,99038.0,99037.0,1e-08]
[1763091848670,2.59590182,99028.0,99027.0,1e-08]
[1763091848891,2.59636097,99028.0,99027.0,1e-08]
[1763091849719,2.61778255,99028.0,99027.0,1e-08]
[1763091849929,2.71726591,99028.0,99027.0,1e-08]
[1763091850129,2.71826591,99028.0,99027.0,1e-08]
[1763091850334,2.69684433,99028.0,99027.0,1e-08]
[1763091850548,2.71925342,99028.0,99027.0,1e-08]
[1763091851323,2.69784433,99028.0,99027.0,1e-08]
[1763091852125,2.49588125,99028.0,99000.0,9.61200142]
[1763091852309,0.6935095,99001.0,99000.0,9.61200142]
[1763091853068,2.6935095,99001.0,99000.0,9.61200142]
[1763091853281,2.6935095,99001.0,99000.0,9.61332405]
[1763091854365,2.70339257,99001.0,99000.0,9.61332405]
[1763091854580,2.73185274,99001.0,99000.0,9.61332405]
[1763091855859,2.70339257,99001.0,99000.0,9.61332405]
[1763091856097,2.70439257,99001.0,99000.0,9.61332405]
[1763091856315,2.70539257,99001.0,99000.0,9.61332405]
[1763091856538,2.70439257,99001.0,99000.0,9.61332405]
[1763091856755,2.70339257,99001.0,99000.0,9.61332405]
[1763091857000,2.70439257,99001.0,99000.0,9.61332405]
[1763091857450,0.52601816,99001.0,99000.0,9.61332405]
[1763091857900,0.20301816,99001.0,99000.0,9.61332405]
[1763091858131,0.20301816,99001.0,99000.0,8.63294023]
[1763091858132,2.21898816,99001.0,99000.0,8.63294023]
[1763091858351,2.5694369,99001.0,99000.0,8.63294023]
[1763091859246,0.52601816,99001.0,99000.0,8.63294023]
[1763091860571,0.52501816,99001.0,99000.0,8.63294023]
[1763091863491,2.61755595,99001.0,99000.0,7.93937933]
[1763091863691,2.64791416,99001.0,99000.0,7.74456346]
[1763091863901,2.64791416,99001.0,99000.0,7.36037426]
[1763091863902,2.72328461,99001.0,99000.0,7.36037426]
[1763091864114,2.72328461,99001.0,99000.0,7.16877666]
[1763091864323,2.72328461,99001.0,99000.0,6.91847447]
[1763091864542,2.72328461,99001.0,99000.0,5.70584494]
[1763091864748,2.72328461,99001.0,99000.0,5.4918087]
[1763091864958,2.72428461,99001.0,99000.0,5.3474647]
[1763091865181,2.72428461,99001.0,99000.0,5.05550672]
[1763091865383,2.72328461,99001.0,99000.0,4.86022783]
[1763091865609,2.72528461,99001.0,99000.0,4.63560945]
[1763091865854,2.72628461,99001.0,99000.0,4.46577145]
[1763091866282,2.72528461,99001.0,99000.0,3.9860358]
[1763091866493,2.72328461,99001.0,99000.0,3.80673883]
[1763091866708,2.72728461,99001.0,99000.0,3.80673883]
[1763091867563,2.75412125,99001.0,99000.0,3.80673883]
[1763091867983,2.64991416,99001.0,99000.0,3.80673883]
[1763091868190,2.65191416,99001.0,99000.0,3.80673883]
[1763091868396,2.64991416,99001.0,99000.0,3.80673883]
[1763091868621,2.65191416,99001.0,99000.0,3.80673883]
[1763091868806,2.72726945,99001.0,99000.0,3.80673883]
[1763091869028,2.72526945,99001.0,99000.0,3.80673883]
[1763091869404,2.32891416,99001.0,99000.0,3.80673883]
[1763091869827,2.65191416,99001.0,99000.0,3.80673883]
[1763091870073,2.25513721,99001.0,99000.0,3.80673883]
[1763091870439,2.29855595,99001.0,99000.0,3.80673883]
[1763091870852,2.57813721,99001.0,99000.0,3.80673883]
[1763091871053,2.61955595,99001.0,99000.0,3.80673883]
[1763091871253,2.61855595,99001.0,99000.0,3.80673883]
[1763091871647,2.61955595,99001.0,99000.0,3.80673883]
[1763091872049,2.61755595,99001.0,99000.0,3.80673883]
[1763091872604,2.61855595,99001.0,99000.0,3.80673883]
[1763091876561,2.65439685,99001.0,99000.0,3.80673883]
[1763091877302,2.61855595,99001.0,99000.0,3.80673883]
[1763091877917,2.65427715,99001.0,99000.0,3.80673883]
[1763091878297,2.61855595,99001.0,99000.0,3.80673883]
[1763091878825,2.65429966,99001.0,99000.0,3.80673883]
[1763091879232,2.57513721,99001.0,99000.0,3.80673883]
[1763091879880,2.57513721,99001.0,99000.0,3.79673883]
[1763091880078,2.57513721,99001.0,99000.0,3.84137883]
[1763091881085,2.57513721,99001.0,99000.0,3.79673883]
[1763091883483,2.57513721,99001.0,99000.0,3.84137883]
[1763091883697,2.57513721,99001.0,99000.0,3.79673883]
[1763091884547,2.37311905,99001.0,99000.0,3.79673883]
[1763091884761,0.37311905,99001.0,99000.0,3.79673883]
[1763091886337,0.37211905,99001.0,99000.0,3.79673883]
[1763091887372,0.39894805,99001.0,99000.0,3.79673883]
[1763091888409,0.37211905,99001.0,99000.0,3.79673883]
[1763091888665,0.57413721,99001.0,99000.0,3.79673883]
[1763091889237,0.37211905,99001.0,99000.0,3.79673883]
[1763091889409,0.04911905,99001.0,99000.0,3.79673883]
[1763091889611,0.02778156,99001.0,99000.0,3.79673883]
[1763091891774,0.323,99009.0,99000.0,3.79673883]
[1763091891978,0.0279474,99008.0,99001.0,0.04464]
[1763091892238,0.0279474,99007.0,99001.0,0.04464]
[1763091892438,0.0093158,99006.0,99002.0,0.20201612]
[1763091892693,0.39881459,99010.0,99004.0,0.20201023]
[1763091892858,0.02794171,99009.0,99004.0,0.20201023]
[1763091893059,0.0093139,99008.0,99005.0,0.04464]
[1763091893266,0.3888146,99010.0,99009.0,0.0497]
[1763091893463,0.20199979,99010.0,99009.0,0.02162]
[1763091893666,0.20199649,99012.0,99010.0,0.04464]
[1763091893890,0.3888146,99015.0,99010.0,0.04464]
[1763091894088,0.35093423,99014.0,99010.0,0.04464]
[1763091894265,0.323,99014.0,99010.0,0.04464]
[1763091894678,0.20199367,99013.0,99010.0,0.04464]
[1763091894991,0.323,99019.0,99010.0,0.04464]
[1763091895197,0.02792976,99018.0,99010.0,0.04464]
[1763091895400,0.00930992,99017.0,99010.0,0.04464]
[1763091895569,0.323,99019.0,99010.0,0.04464]
[1763091895769,0.02792992,99018.0,99010.0,0.04464]
[1763091895974,0.00930997,99017.0,99010.0,0.04464]
[1763091896210,0.323,99019.0,99018.0,0.0497]
[1763091896429,0.00931089,99019.0,99018.0,0.02162]
[1763091897165,0.323,99021.0,99018.0,0.02162]
[1763091897786,0.323,99022.0,99019.0,0.04464]
[1763091899061,0.323,99025.0,99019.0,0.04464]
[1763091899255,0.52497104,99025.0,99019.0,0.04464]
[1763091899669,0.323,99025.0,99019.0,0.04464]
[1763091900757,0.323,99025.0,99024.0,0.02153]
[1763091901501,0.32345915,99028.0,99024.0,0.02153]
[1763091901697,0.32345915,99028.0,99025.0,0.04182]
[1763091902126,0.00045915,99028.0,99027.0,0.20196512]
[1763091903127,0.00045915,99028.0,99024.0,0.02153]
[1763091903329,0.00045915,99028.0,99025.0,0.04182]
[1763091903778,0.00045915,99028.0,99025.0,0.24378833]
[1763091904278,0.00045915,99028.0,99026.0,0.04182]
[1763091904611,0.00045915,99028.0,99027.0,0.20196512]
[1763091905435,0.00045915,99028.0,99025.0,0.20196919]
[1763091905836,0.00045915,99028.0,99027.0,0.20296512]
[1763091906038,0.00045915,99028.0,99027.0,0.001]
[1763091906483,0.00045915,99028.0,99026.0,0.20196631]
[1763091906834,0.00045915,99028.0,99027.0,0.04182]
[1763091908242,0.00045915,99028.0,99027.0,0.04282]
[1763091908661,0.00045915,99028.0,99027.0,0.24540736]
[1763091909080,0.00045915,99028.0,99027.0,0.20358736]
[1763091909721,0.72181459,99040.0,99027.0,0.20358736]
[1763091909722,0.3888146,99040.0,99028.0,0.20196119]
[1763091910058,0.38886049,99040.0,99039.0,0.04775]
[1763091910358,4.589e-05,99040.0,99039.0,0.04775]
[1763091910565,4.589e-05,99040.0,99039.0,0.02076108]
[1763091911193,0.2019845,99040.0,99039.0,0.02076108]
[1763091911998,2.2019845,99040.0,99039.0,0.02176108]
[1763091912208,2.2019845,99040.0,99039.0,0.00131108]
[1763091912598,2.2019845,99040.0,99039.0,0.00031108]
[1763091913632,2.24540324,99040.0,99039.0,0.00031108]
[1763091914675,2.24540324,99040.0,99039.0,1e-08]
[1763091914676,2.59628034,99040.0,99039.0,1e-08]
[1763091914885,2.59628034,99040.0,99000.0,3.7954162]
[1763091914886,0.01009795,99030.0,99000.0,3.7954162]
[1763091915092,0.5684369,99001.0,99000.0,3.7954162]
[1763091915950,2.5684369,99001.0,99000.0,3.7954162]
[1763091916160,2.5684369,99001.0,99000.0,3.11444912]
[1763091916374,2.58994789,99001.0,99000.0,2.94606895]
[1763091916575,2.59094789,99001.0,99000.0,2.71228313]
[1763091916787,2.59094789,99001.0,99000.0,2.52178897]
[1763091916995,2.58994789,99001.0,99000.0,2.52178897]
[1763091917194,2.58994789,99001.0,99000.0,2.04222485]
[1763091917422,2.58994789,99001.0,99000.0,1.84774926]
[1763091917636,2.61782846,99001.0,99000.0,1.81420201]
[1763091917775,2.61882846,99001.0,99000.0,1.81420201]
[1763091918188,2.61982846,99001.0,99000.0,1.13203614]
[1763091918593,2.61882846,99001.0,99000.0,0.87323217]
[1763091918787,2.61982846,99001.0,99000.0,0.87323217]
[1763091918989,2.61982846,99001.0,99000.0,0.44580268]
[1763091920201,2.56844302,98998.0,98968.0,0.02045]
[1763091920530,2.61772806,98998.0,98959.0,0.02045]
[1763091921311,2.61872806,98998.0,98959.0,0.02045]
[1763091921521,2.61972806,98998.0,98959.0,0.02045]
[1763091921775,2.61972806,98998.0,98950.0,0.01]
[1763091921776,0.323,98958.0,98957.0,0.02045]
[1763091922900,0.323,98968.0,98957.0,0.02090915]
[1763091923186,0.1006426,98963.0,98957.0,0.00045915]
[1763091923385,0.323,98960.0,98957.0,0.00045915]
[1763091923737,0.53499696,98960.0,98957.0,0.00045915]
[1763091924147,0.56852468,98958.0,98957.0,0.00045915]
[1763091924349,2.56852468,98958.0,98957.0,0.00045915]
[1763091926278,2.56952468,98958.0,98948.0,0.00489655]
[1763091926496,2.5685594,98941.0,98940.0,0.0004]
[1763091926719,2.59627721,98941.0,98940.0,0.0004]
[1763091927860,2.59727721,98941.0,98940.0,0.0004]